[Event "Early-Titled-Tuesday-Blitz-November-28-2023"]
[Site "Chess.com"]
[Date "2023.11.28"]
[Round "10"]
[White "Der_Balak_3Halak"]
[Black "Mystery2007"]
[Result "1-0"]
[WhiteElo "2342"]
[BlackElo "2548"]
[TimeControl "180+1"]
[EndTime "10:02:33 PST"]
[Termination "Der_Balak_3Halak won by checkmate"]

1. e4 {[%clk 0:02:44.9]} 1... g6 {[%clk 0:02:59.2]} 2. d4 {[%clk 0:02:40.7]}
2... Bg7 {[%clk 0:02:59.5]} 3. Be3 {[%clk 0:02:40.4]} 3... d6 {[%clk 0:02:59.1]}
4. Nc3 {[%clk 0:02:35.1]} 4... Nf6 {[%clk 0:02:59.1]} 5. Qd2 {[%clk 0:02:35.1]}
5... h5 {[%clk 0:02:54.3]} 6. f3 {[%clk 0:02:33.9]} 6... c6 {[%clk 0:02:54.3]}
7. a3 {[%clk 0:02:19.4]} 7... b5 {[%clk 0:02:53.3]} 8. d5 {[%clk 0:02:17.9]}
8... a6 {[%clk 0:02:50.3]} 9. Nge2 {[%clk 0:02:06.8]} 9... Bb7 {[%clk
0:02:37.7]} 10. Nf4 {[%clk 0:01:53.7]} 10... c5 {[%clk 0:02:25.1]} 11. Be2
{[%clk 0:01:43.3]} 11... Nbd7 {[%clk 0:02:24.3]} 12. O-O {[%clk 0:01:36.6]}
12... Ne5 {[%clk 0:02:24.1]} 13. Nd3 {[%clk 0:01:33.1]} 13... Nc4 {[%clk
0:02:21.7]} 14. Qc1 {[%clk 0:01:33.1]} 14... Nxe3 {[%clk 0:02:21.7]} 15. Qxe3
{[%clk 0:01:32.5]} 15... Bh6 {[%clk 0:02:22.4]} 16. f4 {[%clk 0:01:25.9]} 16...
O-O {[%clk 0:02:06.3]} 17. Qg3 {[%clk 0:01:15.9]} 17... Kh7 {[%clk 0:02:05.4]}
18. Bf3 {[%clk 0:01:05.9]} 18... Qb6 {[%clk 0:01:58.8]} 19. e5 {[%clk
0:01:03.6]} 19... c4+ {[%clk 0:01:56.5]} 20. Nf2 {[%clk 0:01:01.5]} 20... Nd7
{[%clk 0:01:44.7]} 21. e6 {[%clk 0:00:54.9]} 21... fxe6 {[%clk 0:01:39.2]} 22.
dxe6 {[%clk 0:00:55.8]} 22... Bxf3 {[%clk 0:01:36.7]} 23. Qxf3 {[%clk
0:00:41.9]} 23... Nf6 {[%clk 0:01:29.4]} 24. Kh1 {[%clk 0:00:33.2]} 24... Rac8
{[%clk 0:01:27.4]} 25. Nfe4 {[%clk 0:00:24.3]} 25... Nxe4 {[%clk 0:01:20.1]} 26.
Qxe4 {[%clk 0:00:25.2]} 26... Rf5 {[%clk 0:01:17.2]} 27. Nd5 {[%clk 0:00:22.6]}
27... Qc6 {[%clk 0:01:09]} 28. Rad1 {[%clk 0:00:17.4]} 28... Bf8 {[%clk
0:00:57.2]} 29. Rfe1 {[%clk 0:00:16.8]} 29... Qc5 {[%clk 0:00:49]} 30. Ne3
{[%clk 0:00:15.5]} 30... Rf6 {[%clk 0:00:46]} 31. Rd5 {[%clk 0:00:16]} 31... Qc6
{[%clk 0:00:43]} 32. Rxh5+ {[%clk 0:00:16.6]} 32... Kg8 {[%clk 0:00:39.1]} 33.
Qxc6 {[%clk 0:00:17.5]} 33... Rxc6 {[%clk 0:00:39]} 34. Rg5 {[%clk 0:00:17.6]}
34... Bh6 {[%clk 0:00:38.3]} 35. Rg4 {[%clk 0:00:16.7]} 35... Bxf4 {[%clk
0:00:36.9]} 36. Nd5 {[%clk 0:00:16.2]} 36... Be5 {[%clk 0:00:07.7]} 37. Nxe7+
{[%clk 0:00:16]} 37... Kg7 {[%clk 0:00:07.5]} 38. Nxc6 {[%clk 0:00:16.9]} 38...
Rxe6 {[%clk 0:00:07.3]} 39. Nxe5 {[%clk 0:00:17.2]} 39... dxe5 {[%clk
0:00:08.2]} 40. Rge4 {[%clk 0:00:17.3]} 40... Kf6 {[%clk 0:00:08.3]} 41. g3
{[%clk 0:00:17.8]} 41... Kf5 {[%clk 0:00:08.8]} 42. g4+ {[%clk 0:00:17.3]} 42...
Kf6 {[%clk 0:00:08.6]} 43. Kg2 {[%clk 0:00:17.9]} 43... g5 {[%clk 0:00:08.9]}
44. Rf1+ {[%clk 0:00:17.4]} 44... Kg6 {[%clk 0:00:09]} 45. Rf5 {[%clk
0:00:18.3]} 45... Rd6 {[%clk 0:00:08.8]} 46. Rfxe5 {[%clk 0:00:18.9]} 46... Rd2+
{[%clk 0:00:09.7]} 47. Re2 {[%clk 0:00:19.7]} 47... Rd4 {[%clk 0:00:09.5]} 48.
Re6+ {[%clk 0:00:20]} 48... Kf7 {[%clk 0:00:10.2]} 49. Rxa6 {[%clk 0:00:19.6]}
49... Rxg4+ {[%clk 0:00:09.8]} 50. Kh3 {[%clk 0:00:20.2]} 50... Rh4+ {[%clk
0:00:10]} 51. Kg3 {[%clk 0:00:20.5]} 51... Rd4 {[%clk 0:00:10.9]} 52. Rf2+
{[%clk 0:00:20.4]} 52... Ke7 {[%clk 0:00:10.9]} 53. Rff6 {[%clk 0:00:20.2]}
53... Rd2 {[%clk 0:00:11.2]} 54. Rh6 {[%clk 0:00:20]} 54... Rxc2 {[%clk
0:00:10.5]} 55. Rh7+ {[%clk 0:00:20.2]} 55... Kf8 {[%clk 0:00:08]} 56. Ra8#
{[%clk 0:00:21.1]} 1-0

[Event "Early-Titled-Tuesday-Blitz-November-28-2023"]
[Site "Chess.com"]
[Date "2023.11.28"]
[Round "10"]
[White "DuleMudule"]
[Black "shimastream"]
[Result "1-0"]
[WhiteElo "2845"]
[BlackElo "2938"]
[TimeControl "180+1"]
[EndTime "10:02:34 PST"]
[Termination "DuleMudule won on time"]

1. d4 {[%clk 0:03:00.9]} 1... h6 {[%clk 0:02:54.9]} 2. e4 {[%clk 0:03:00.5]}
2... e6 {[%clk 0:02:54.3]} 3. Nc3 {[%clk 0:03:00.8]} 3... d5 {[%clk 0:02:54.4]}
4. Nf3 {[%clk 0:02:55.8]} 4... Nf6 {[%clk 0:02:53.9]} 5. Bd3 {[%clk 0:02:54.3]}
5... c5 {[%clk 0:02:52.8]} 6. exd5 {[%clk 0:02:52.6]} 6... exd5 {[%clk
0:02:47.6]} 7. O-O {[%clk 0:02:38.2]} 7... Nc6 {[%clk 0:02:46.3]} 8. Re1+ {[%clk
0:02:37.3]} 8... Be6 {[%clk 0:02:46.5]} 9. dxc5 {[%clk 0:02:33.5]} 9... Bxc5
{[%clk 0:02:46.1]} 10. Bf4 {[%clk 0:02:29.5]} 10... O-O {[%clk 0:02:44.2]} 11.
Bg3 {[%clk 0:02:24.1]} 11... Re8 {[%clk 0:02:42.1]} 12. a3 {[%clk 0:02:23.1]}
12... Rc8 {[%clk 0:02:37.5]} 13. b4 {[%clk 0:02:21.7]} 13... Bf8 {[%clk
0:02:33.8]} 14. Nb5 {[%clk 0:02:21.9]} 14... Ne4 {[%clk 0:02:23.8]} 15. Bxe4
{[%clk 0:02:14.3]} 15... dxe4 {[%clk 0:02:24.7]} 16. Rxe4 {[%clk 0:02:11.9]}
16... Qb6 {[%clk 0:01:55]} 17. Nd6 {[%clk 0:02:04]} 17... Rcd8 {[%clk
0:01:48.4]} 18. c4 {[%clk 0:02:03.1]} 18... Bxd6 {[%clk 0:01:24]} 19. Bxd6
{[%clk 0:01:57.5]} 19... a6 {[%clk 0:01:12.8]} 20. c5 {[%clk 0:01:56]} 20... Qb5
{[%clk 0:01:12.3]} 21. a4 {[%clk 0:01:47]} 21... Qxb4 {[%clk 0:00:29.8]} 22.
Rxb4 {[%clk 0:01:45.7]} 22... Nxb4 {[%clk 0:00:30.7]} 23. Qd2 {[%clk 0:01:39.6]}
23... Nc6 {[%clk 0:00:23.1]} 24. h3 {[%clk 0:01:37.6]} 24... Bf5 {[%clk
0:00:20.9]} 25. Qf4 {[%clk 0:01:35.9]} 25... Bg6 {[%clk 0:00:19.6]} 26. Re1
{[%clk 0:01:35.6]} 26... Rxe1+ {[%clk 0:00:18.5]} 27. Nxe1 {[%clk 0:01:35.4]}
27... Re8 {[%clk 0:00:19.4]} 28. Nf3 {[%clk 0:01:34.5]} 28... Re4 {[%clk
0:00:19.7]} 29. Qd2 {[%clk 0:01:33.8]} 29... Rxa4 {[%clk 0:00:19.9]} 30. Ne5
{[%clk 0:01:33.8]} 30... Nxe5 {[%clk 0:00:19.3]} 31. Bxe5 {[%clk 0:01:34.7]}
31... Re4 {[%clk 0:00:17.2]} 32. Qd8+ {[%clk 0:01:30.8]} 32... Kh7 {[%clk
0:00:17]} 33. Bd6 {[%clk 0:01:25.6]} 33... Rb4 {[%clk 0:00:13.7]} 34. Kh2 {[%clk
0:01:23.1]} 34... Rb2 {[%clk 0:00:12.1]} 35. f3 {[%clk 0:01:20.3]} 35... Rb1
{[%clk 0:00:11.5]} 36. Be5 {[%clk 0:01:16.6]} 36... Re1 {[%clk 0:00:08.7]} 37.
Bc3 {[%clk 0:01:14.5]} 37... Rc1 {[%clk 0:00:08.3]} 38. Qd4 {[%clk 0:01:13.7]}
38... f6 {[%clk 0:00:07.8]} 39. Bd2 {[%clk 0:01:11.5]} 39... Rd1 {[%clk
0:00:07]} 40. Qe3 {[%clk 0:01:10.7]} 40... Rb1 {[%clk 0:00:03.9]} 41. h4 {[%clk
0:01:10.7]} 41... h5 {[%clk 0:00:03.6]} 42. Kg3 {[%clk 0:01:10.5]} 42... Rd1
{[%clk 0:00:02.7]} 43. Ba5 {[%clk 0:01:06.9]} 43... Rd7 {[%clk 0:00:02.5]} 44.
Qf4 {[%clk 0:01:04.5]} 44... Re7 {[%clk 0:00:02.4]} 45. Bc7 {[%clk 0:01:04.4]}
45... Rd7 {[%clk 0:00:02.5]} 46. Bd6 {[%clk 0:01:04.6]} 46... Rf7 {[%clk
0:00:02.9]} 47. Qe3 {[%clk 0:01:03.7]} 47... Rd7 {[%clk 0:00:02.6]} 48. Kf4
{[%clk 0:01:01.9]} 48... Rf7 {[%clk 0:00:02.6]} 49. g4 {[%clk 0:01:02]} 49...
Rd7 {[%clk 0:00:02.8]} 50. Qe6 {[%clk 0:00:59.4]} 50... Rf7 {[%clk 0:00:03]} 51.
Qc8 {[%clk 0:00:58.4]} 51... hxg4 {[%clk 0:00:01.9]} 52. fxg4 {[%clk 0:00:58.1]}
52... Bb1 {[%clk 0:00:02.4]} 53. Qe8 {[%clk 0:00:52.2]} 53... g5+ {[%clk
0:00:01.8]} 54. hxg5 {[%clk 0:00:50.9]} 54... fxg5+ {[%clk 0:00:02.7]} 55. Kxg5
{[%clk 0:00:51.4]} 55... Bg6 {[%clk 0:00:03.2]} 56. Qe6 {[%clk 0:00:49.9]} 56...
Rg7 {[%clk 0:00:03.6]} 57. Kh4 {[%clk 0:00:50]} 57... Bf7 {[%clk 0:00:03.7]} 58.
Qf6 {[%clk 0:00:49.7]} 58... Kg8 {[%clk 0:00:03.4]} 59. Be5 {[%clk 0:00:49.1]}
59... Rh7+ {[%clk 0:00:03.7]} 60. Kg3 {[%clk 0:00:49.4]} 60... Be8 {[%clk
0:00:02.7]} 61. Qe6+ {[%clk 0:00:46.4]} 61... Kf8 {[%clk 0:00:03.2]} 62. Bd6+
{[%clk 0:00:45.2]} 1-0

[Event "Early-Titled-Tuesday-Blitz-November-28-2023"]
[Site "Chess.com"]
[Date "2023.11.28"]
[Round "10"]
[White "Aslanov_Umid"]
[Black "Gabrielian_Artur"]
[Result "0-1"]
[WhiteElo "2531"]
[BlackElo "2733"]
[TimeControl "180+1"]
[EndTime "10:02:37 PST"]
[Termination "Gabrielian_Artur won on time"]

1. e4 {[%clk 0:03:00.9]} 1... e5 {[%clk 0:02:59.9]} 2. Nf3 {[%clk 0:03:01.4]}
2... Nc6 {[%clk 0:03:00.3]} 3. Bc4 {[%clk 0:03:02.1]} 3... Nf6 {[%clk
0:02:59.8]} 4. d3 {[%clk 0:03:02.1]} 4... Be7 {[%clk 0:02:59.7]} 5. O-O {[%clk
0:03:02.7]} 5... O-O {[%clk 0:02:59.7]} 6. Re1 {[%clk 0:03:01]} 6... d6 {[%clk
0:02:59.7]} 7. h3 {[%clk 0:03:00.9]} 7... Na5 {[%clk 0:02:50.2]} 8. Bb5 {[%clk
0:02:59.2]} 8... a6 {[%clk 0:02:50.2]} 9. Ba4 {[%clk 0:03:00]} 9... b5 {[%clk
0:02:50.5]} 10. Bb3 {[%clk 0:03:00.7]} 10... Nxb3 {[%clk 0:02:50.8]} 11. axb3
{[%clk 0:03:00.6]} 11... c5 {[%clk 0:02:51.1]} 12. Bg5 {[%clk 0:02:51.4]} 12...
Nh5 {[%clk 0:02:43.6]} 13. Be3 {[%clk 0:02:20.6]} 13... f5 {[%clk 0:02:37.5]}
14. Nc3 {[%clk 0:02:16.4]} 14... f4 {[%clk 0:02:33.7]} 15. Bd2 {[%clk
0:02:15.7]} 15... Nf6 {[%clk 0:02:33.3]} 16. Nd5 {[%clk 0:02:07.9]} 16... Nxd5
{[%clk 0:02:32.8]} 17. exd5 {[%clk 0:02:08.8]} 17... Qe8 {[%clk 0:02:27.5]} 18.
Qe2 {[%clk 0:01:59.7]} 18... Qg6 {[%clk 0:02:24]} 19. Kh2 {[%clk 0:01:44.6]}
19... Rf5 {[%clk 0:02:14.1]} 20. b4 {[%clk 0:01:39.7]} 20... cxb4 {[%clk
0:02:08.7]} 21. Bxb4 {[%clk 0:01:38.3]} 21... Rh5 {[%clk 0:02:08.9]} 22. Ng1
{[%clk 0:01:16.6]} 22... Rg5 {[%clk 0:02:07.7]} 23. f3 {[%clk 0:01:14.3]} 23...
Rf5 {[%clk 0:02:03]} 24. Qf1 {[%clk 0:00:57.6]} 24... Bh4 {[%clk 0:02:02.3]} 25.
Re4 {[%clk 0:00:58]} 25... Bg3+ {[%clk 0:02:02.5]} 26. Kh1 {[%clk 0:00:58.2]}
26... Rh5 {[%clk 0:02:02.6]} 27. c4 {[%clk 0:00:53.8]} 27... Bf5 {[%clk
0:02:01.6]} 28. cxb5 {[%clk 0:00:53]} 28... Bxe4 {[%clk 0:01:56.6]} 29. dxe4
{[%clk 0:00:53.9]} 29... Qe8 {[%clk 0:01:44.1]} 30. Rxa6 {[%clk 0:00:48.1]}
30... Rb8 {[%clk 0:01:30.5]} 31. b6 {[%clk 0:00:44]} 31... Rh6 {[%clk
0:01:28.8]} 32. Ba3 {[%clk 0:00:20.1]} 32... Rf6 {[%clk 0:01:27.1]} 33. Qc4
{[%clk 0:00:16.5]} 33... Bf2 {[%clk 0:01:23.2]} 34. Qb3 {[%clk 0:00:06.9]} 34...
Qc8 {[%clk 0:01:18.6]} 35. b7 {[%clk 0:00:04.8]} 35... Qxb7 {[%clk 0:01:14.5]}
36. Qc4 {[%clk 0:00:02.6]} 36... Qb5 {[%clk 0:01:05.1]} 37. Qxb5 {[%clk
0:00:03.1]} 37... Rxb5 {[%clk 0:01:05]} 38. Ne2 {[%clk 0:00:03.4]} 38... Rf8
{[%clk 0:01:01.5]} 39. Bxd6 {[%clk 0:00:02.4]} 39... Rc8 {[%clk 0:01:00.3]} 40.
Bxe5 {[%clk 0:00:02.7]} 40... Rc2 {[%clk 0:00:57.2]} 41. Nxf4 {[%clk 0:00:02.7]}
41... Bg3 {[%clk 0:00:47.1]} 42. Nd3 {[%clk 0:00:02.7]} 42... Bxe5 {[%clk
0:00:40]} 43. Nxe5 {[%clk 0:00:03.6]} 43... h6 {[%clk 0:00:40.1]} 44. Ra8+
{[%clk 0:00:03.8]} 44... Kh7 {[%clk 0:00:40.1]} 45. Nf7 {[%clk 0:00:03.9]} 45...
Rbxb2 {[%clk 0:00:38.3]} 46. Rh8+ {[%clk 0:00:03.9]} 46... Kg6 {[%clk
0:00:38.7]} 47. Ne5+ {[%clk 0:00:04.8]} 47... Kf6 {[%clk 0:00:36.7]} 48. Ng4+
{[%clk 0:00:04.8]} 48... Kg5 {[%clk 0:00:37.2]} 49. Ne3 {[%clk 0:00:05.6]} 49...
Re2 {[%clk 0:00:37.6]} 50. h4+ {[%clk 0:00:04.2]} 50... Kf4 {[%clk 0:00:33.7]}
51. d6 {[%clk 0:00:04.2]} 51... Rbd2 {[%clk 0:00:26.2]} 52. Nd5+ {[%clk
0:00:03.7]} 52... Kg3 {[%clk 0:00:25.7]} 0-1

[Event "Early-Titled-Tuesday-Blitz-November-28-2023"]
[Site "Chess.com"]
[Date "2023.11.28"]
[Round "10"]
[White "Grischuk"]
[Black "Hikaru"]
[Result "1-0"]
[WhiteElo "3076"]
[BlackElo "3215"]
[TimeControl "180+1"]
[EndTime "10:02:39 PST"]
[Termination "Grischuk won on time"]

1. d4 {[%clk 0:03:00.9]} 1... g6 {[%clk 0:02:53.6]} 2. e4 {[%clk 0:03:00.2]}
2... c6 {[%clk 0:02:52.3]} 3. Nc3 {[%clk 0:02:56.4]} 3... d5 {[%clk 0:02:52.2]}
4. e5 {[%clk 0:02:55.4]} 4... f6 {[%clk 0:02:43.7]} 5. f4 {[%clk 0:02:54.7]}
5... Nh6 {[%clk 0:02:39.3]} 6. Be2 {[%clk 0:02:51.5]} 6... Nf7 {[%clk 0:02:38]}
7. Nf3 {[%clk 0:02:48.1]} 7... Bg7 {[%clk 0:02:32.7]} 8. Be3 {[%clk 0:02:43.6]}
8... b6 {[%clk 0:02:31.8]} 9. Qd2 {[%clk 0:02:38.8]} 9... Ba6 {[%clk 0:02:31.7]}
10. O-O-O {[%clk 0:02:34.8]} 10... Qc8 {[%clk 0:02:27]} 11. Rhg1 {[%clk
0:02:21.1]} 11... Bxe2 {[%clk 0:02:26.2]} 12. Nxe2 {[%clk 0:02:21.1]} 12... f5
{[%clk 0:02:20.9]} 13. h3 {[%clk 0:02:19.2]} 13... e6 {[%clk 0:02:20.2]} 14. g4
{[%clk 0:02:18.5]} 14... Bf8 {[%clk 0:02:09.1]} 15. Kb1 {[%clk 0:02:17.9]} 15...
Na6 {[%clk 0:02:03.3]} 16. Bf2 {[%clk 0:02:15.5]} 16... Qd7 {[%clk 0:01:58.8]}
17. Bh4 {[%clk 0:02:13.2]} 17... Be7 {[%clk 0:01:57.7]} 18. Bf6 {[%clk
0:02:11.7]} 18... Rf8 {[%clk 0:01:55]} 19. Qe1 {[%clk 0:02:09.7]} 19... O-O-O
{[%clk 0:01:45.5]} 20. Qh4 {[%clk 0:02:03]} 20... Bxf6 {[%clk 0:01:45.8]} 21.
exf6 {[%clk 0:02:03.6]} 21... Nd6 {[%clk 0:01:45.8]} 22. Ne5 {[%clk 0:02:02.6]}
22... Qc7 {[%clk 0:01:46.1]} 23. g5 {[%clk 0:01:57.9]} 23... Nb8 {[%clk
0:01:32.6]} 24. Qe1 {[%clk 0:01:49.7]} 24... Nd7 {[%clk 0:01:31]} 25. h4 {[%clk
0:01:48.5]} 25... c5 {[%clk 0:01:08.7]} 26. h5 {[%clk 0:01:36.2]} 26... Nxe5
{[%clk 0:01:03.1]} 27. fxe5 {[%clk 0:01:35.8]} 27... Ne4 {[%clk 0:01:03.8]} 28.
Nf4 {[%clk 0:01:26.4]} 28... Qf7 {[%clk 0:01:03.7]} 29. dxc5 {[%clk 0:01:20]}
29... Nxc5 {[%clk 0:01:00.5]} 30. Qe3 {[%clk 0:01:10.7]} 30... Ne4 {[%clk
0:00:56.2]} 31. Qd4 {[%clk 0:01:05]} 31... Kb7 {[%clk 0:00:48.5]} 32. c4 {[%clk
0:00:49.3]} 32... dxc4 {[%clk 0:00:48.5]} 33. Qxd8 {[%clk 0:00:49.5]} 33... Rxd8
{[%clk 0:00:49.4]} 34. Rxd8 {[%clk 0:00:49.2]} 34... c3 {[%clk 0:00:50]} 35.
Rgd1 {[%clk 0:00:44.6]} 35... Nd2+ {[%clk 0:00:45]} 36. R8xd2 {[%clk 0:00:30.8]}
36... cxd2 {[%clk 0:00:44.7]} 37. hxg6 {[%clk 0:00:31.7]} 37... hxg6 {[%clk
0:00:43.5]} 38. Rxd2 {[%clk 0:00:32.1]} 38... Qe8 {[%clk 0:00:31.8]} 39. a3
{[%clk 0:00:30.4]} 39... Ka6 {[%clk 0:00:31.8]} 40. Ka2 {[%clk 0:00:21]} 40...
Qc8 {[%clk 0:00:28.1]} 41. Rd4 {[%clk 0:00:16.3]} 41... Qc5 {[%clk 0:00:24.2]}
42. Nxe6 {[%clk 0:00:14.5]} 42... Qxe5 {[%clk 0:00:23.4]} 43. Ra4+ {[%clk
0:00:06.3]} 43... Kb7 {[%clk 0:00:23.8]} 44. Nd8+ {[%clk 0:00:05.6]} 44... Kc8
{[%clk 0:00:24]} 45. f7 {[%clk 0:00:01.9]} 45... Qd5+ {[%clk 0:00:24.2]} 46. Ka1
{[%clk 0:00:02]} 46... Qxd8 {[%clk 0:00:21.9]} 47. Rxa7 {[%clk 0:00:02.9]} 47...
Kb8 {[%clk 0:00:18.5]} 48. Rd7 {[%clk 0:00:03]} 48... Qxg5 {[%clk 0:00:12]} 49.
f8=Q+ {[%clk 0:00:01.5]} 1-0

[Event "Early-Titled-Tuesday-Blitz-November-28-2023"]
[Site "Chess.com"]
[Date "2023.11.28"]
[Round "10"]
[White "Shivananda1964"]
[Black "deribas12345"]
[Result "1-0"]
[WhiteElo "2410"]
[BlackElo "2527"]
[TimeControl "180+1"]
[EndTime "10:02:39 PST"]
[Termination "Shivananda1964 won by resignation"]

1. d4 {[%clk 0:02:59.5]} 1... Nf6 {[%clk 0:02:59.3]} 2. g3 {[%clk 0:02:54.9]}
2... c5 {[%clk 0:02:57.7]} 3. dxc5 {[%clk 0:02:51.5]} 3... Na6 {[%clk
0:02:56.9]} 4. Bg2 {[%clk 0:02:50.5]} 4... Nxc5 {[%clk 0:02:56.5]} 5. Nf3 {[%clk
0:02:50.4]} 5... d6 {[%clk 0:02:56.1]} 6. O-O {[%clk 0:02:50.2]} 6... g6 {[%clk
0:02:56.6]} 7. b3 {[%clk 0:02:48.8]} 7... Bg7 {[%clk 0:02:56.7]} 8. Bb2 {[%clk
0:02:49.4]} 8... O-O {[%clk 0:02:57]} 9. Nbd2 {[%clk 0:02:43.2]} 9... a5 {[%clk
0:02:56.2]} 10. a4 {[%clk 0:02:41.7]} 10... Bf5 {[%clk 0:02:51.5]} 11. Nd4
{[%clk 0:02:40.5]} 11... Bd7 {[%clk 0:02:45.5]} 12. Nc4 {[%clk 0:02:38]} 12...
Rc8 {[%clk 0:02:40.1]} 13. Re1 {[%clk 0:02:36.5]} 13... Ng4 {[%clk 0:02:29.6]}
14. e4 {[%clk 0:02:31]} 14... Ne5 {[%clk 0:02:23.8]} 15. Nxe5 {[%clk 0:02:23.1]}
15... Bxe5 {[%clk 0:02:24.7]} 16. f4 {[%clk 0:02:21.7]} 16... Bg7 {[%clk
0:02:24]} 17. Qd2 {[%clk 0:02:19.6]} 17... Ne6 {[%clk 0:02:13.1]} 18. Nxe6
{[%clk 0:02:15.3]} 18... Bxe6 {[%clk 0:02:12.3]} 19. Bxg7 {[%clk 0:02:15.3]}
19... Kxg7 {[%clk 0:02:13.2]} 20. c4 {[%clk 0:02:12.4]} 20... Qb6+ {[%clk
0:02:11.8]} 21. Qe3 {[%clk 0:02:08.9]} 21... Qxe3+ {[%clk 0:02:08.9]} 22. Rxe3
{[%clk 0:02:08.7]} 22... Rc5 {[%clk 0:02:06.2]} 23. e5 {[%clk 0:01:49]} 23...
dxe5 {[%clk 0:02:02.6]} 24. Bxb7 {[%clk 0:01:44.4]} 24... exf4 {[%clk 0:01:59]}
25. gxf4 {[%clk 0:01:43.1]} 25... Rd8 {[%clk 0:01:57.8]} 26. Rae1 {[%clk
0:01:31.8]} 26... Rd4 {[%clk 0:01:48.4]} 27. Re5 {[%clk 0:01:30.1]} 27... Rc7
{[%clk 0:01:47.2]} 28. Bg2 {[%clk 0:01:22.5]} 28... Ra7 {[%clk 0:01:41]} 29. Rb5
{[%clk 0:01:09.9]} 29... Rxf4 {[%clk 0:01:36.3]} 30. Ree5 {[%clk 0:01:09.8]}
30... Rf5 {[%clk 0:01:35.5]} 31. Rxf5 {[%clk 0:01:06.2]} 31... gxf5 {[%clk
0:01:33.3]} 32. c5 {[%clk 0:01:00.6]} 32... Kf6 {[%clk 0:01:29.1]} 33. c6 {[%clk
0:00:59.4]} 33... Bc8 {[%clk 0:01:18.8]} 34. Rb8 {[%clk 0:00:50.5]} 34... Rc7
{[%clk 0:01:15.5]} 35. Rb7 {[%clk 0:00:38]} 35... Bxb7 {[%clk 0:00:50]} 36. cxb7
{[%clk 0:00:37.4]} 36... Rxb7 {[%clk 0:00:50]} 37. Bxb7 {[%clk 0:00:36.2]} 37...
Ke5 {[%clk 0:00:50.4]} 38. Kf2 {[%clk 0:00:31]} 38... Kd4 {[%clk 0:00:50.2]} 39.
Kf3 {[%clk 0:00:29.4]} 39... e5 {[%clk 0:00:42.9]} 40. h4 {[%clk 0:00:27]} 40...
h5 {[%clk 0:00:39.5]} 41. Bc6 {[%clk 0:00:25.7]} 41... Kc3 {[%clk 0:00:26.9]}
42. Bd5 {[%clk 0:00:25.2]} 42... f6 {[%clk 0:00:26.1]} 43. Be6 {[%clk
0:00:24.6]} 43... f4 {[%clk 0:00:25.3]} 44. Ke4 {[%clk 0:00:23.8]} 44... Kd2
{[%clk 0:00:24]} 45. b4 {[%clk 0:00:22.7]} 45... axb4 {[%clk 0:00:23.7]} 46. a5
{[%clk 0:00:23.1]} 46... f5+ {[%clk 0:00:16.9]} 47. Bxf5 {[%clk 0:00:10.6]}
47... b3 {[%clk 0:00:08.8]} 48. Kf3 {[%clk 0:00:10.6]} 48... b2 {[%clk
0:00:05.5]} 49. a6 {[%clk 0:00:09.8]} 49... Kc3 {[%clk 0:00:05.5]} 50. a7 {[%clk
0:00:09.4]} 50... Kd4 {[%clk 0:00:03.5]} 51. a8=Q {[%clk 0:00:08.3]} 1-0

[Event "Early-Titled-Tuesday-Blitz-November-28-2023"]
[Site "Chess.com"]
[Date "2023.11.28"]
[Round "10"]
[White "Me_ch_an"]
[Black "Jamal-Jamal-Jamal"]
[Result "0-1"]
[WhiteElo "2316"]
[BlackElo "2475"]
[TimeControl "180+1"]
[EndTime "10:02:39 PST"]
[Termination "Jamal-Jamal-Jamal won on time"]

1. e4 {[%clk 0:03:00.9]} 1... e6 {[%clk 0:02:59.2]} 2. d4 {[%clk 0:02:59.9]}
2... d5 {[%clk 0:02:59]} 3. e5 {[%clk 0:03:00.7]} 3... c5 {[%clk 0:02:58.5]} 4.
c3 {[%clk 0:03:01.3]} 4... Bd7 {[%clk 0:02:55.3]} 5. g3 {[%clk 0:03:01.5]} 5...
Qb6 {[%clk 0:02:52.4]} 6. Ne2 {[%clk 0:03:01.5]} 6... Ne7 {[%clk 0:02:43.7]} 7.
Bh3 {[%clk 0:03:01.3]} 7... cxd4 {[%clk 0:02:35.8]} 8. cxd4 {[%clk 0:03:01]}
8... Bb5 {[%clk 0:02:36.2]} 9. Nbc3 {[%clk 0:03:00.8]} 9... Nec6 {[%clk
0:02:23.6]} 10. O-O {[%clk 0:02:52.8]} 10... Bb4 {[%clk 0:02:22.4]} 11. Be3
{[%clk 0:02:49.7]} 11... Bxc3 {[%clk 0:02:19.3]} 12. bxc3 {[%clk 0:02:49.4]}
12... Bxe2 {[%clk 0:02:17.9]} 13. Qxe2 {[%clk 0:02:49.4]} 13... Na5 {[%clk
0:02:18.2]} 14. Rab1 {[%clk 0:02:48]} 14... Qa6 {[%clk 0:02:18.1]} 15. Qxa6
{[%clk 0:02:43.4]} 15... Nxa6 {[%clk 0:02:19]} 16. Rb5 {[%clk 0:02:41.4]} 16...
b6 {[%clk 0:02:16.6]} 17. f4 {[%clk 0:02:33.5]} 17... Nc4 {[%clk 0:02:15.5]} 18.
Bc1 {[%clk 0:02:33.2]} 18... g6 {[%clk 0:02:09.2]} 19. g4 {[%clk 0:02:31.9]}
19... h5 {[%clk 0:01:58.7]} 20. g5 {[%clk 0:01:47.5]} 20... Ke7 {[%clk
0:01:47.4]} 21. Rf3 {[%clk 0:01:47.1]} 21... Rhc8 {[%clk 0:01:45.1]} 22. Bf1
{[%clk 0:01:47]} 22... Nb8 {[%clk 0:01:41.3]} 23. Bxc4 {[%clk 0:01:44.2]} 23...
Rxc4 {[%clk 0:01:40.5]} 24. Ba3+ {[%clk 0:01:44.4]} 24... Ke8 {[%clk 0:01:37.9]}
25. f5 {[%clk 0:01:03.1]} 25... Nd7 {[%clk 0:00:59.3]} 26. fxg6 {[%clk
0:00:51.3]} 26... fxg6 {[%clk 0:01:00.2]} 27. Rb1 {[%clk 0:00:46.3]} 27... Rac8
{[%clk 0:01:00]} 28. Bb2 {[%clk 0:00:42.8]} 28... b5 {[%clk 0:00:43]} 29. Rbf1
{[%clk 0:00:40.7]} 29... a5 {[%clk 0:00:40.2]} 30. Rf7 {[%clk 0:00:34.4]} 30...
b4 {[%clk 0:00:39.5]} 31. Rh7 {[%clk 0:00:25.2]} 31... Nf8 {[%clk 0:00:21.3]}
32. Rb7 {[%clk 0:00:17.2]} 32... R8c7 {[%clk 0:00:18.8]} 33. Rb8+ {[%clk
0:00:15.1]} 33... Rc8 {[%clk 0:00:19.4]} 34. Rb7 {[%clk 0:00:11.2]} 34... R4c7
{[%clk 0:00:19.2]} 35. Rb6 {[%clk 0:00:04.4]} 35... Rc6 {[%clk 0:00:15.8]} 36.
Rb7 {[%clk 0:00:04.3]} 36... Nd7 {[%clk 0:00:10.7]} 37. cxb4 {[%clk 0:00:03.5]}
37... axb4 {[%clk 0:00:11.6]} 38. Rxb4 {[%clk 0:00:03.9]} 38... Rc2 {[%clk
0:00:10.9]} 39. Rb3 {[%clk 0:00:04.3]} 39... Re2 {[%clk 0:00:07.9]} 40. Ba3
{[%clk 0:00:04.6]} 40... Rcc2 {[%clk 0:00:06.3]} 41. Rfb1 {[%clk 0:00:02]} 41...
Rg2+ {[%clk 0:00:06.2]} 42. Kh1 {[%clk 0:00:02]} 42... Rxh2+ {[%clk 0:00:06.5]}
43. Kg1 {[%clk 0:00:02.9]} 43... Rhg2+ {[%clk 0:00:07]} 44. Kh1 {[%clk
0:00:03.1]} 44... Rh2+ {[%clk 0:00:07.4]} 45. Kg1 {[%clk 0:00:03]} 45... Rhg2+
{[%clk 0:00:04.9]} 46. Kh1 {[%clk 0:00:03.5]} 46... Rxg5 {[%clk 0:00:04.1]} 47.
Bd6 {[%clk 0:00:03.2]} 47... Rg4 {[%clk 0:00:04]} 0-1